Cogmind - Beta 15 @@@ ROGUE MODE // 2025.05.31 @ 19:03:14 Player: KeKe Result: Destroyed by IH-5TT(R) with Subdweller Machine Gun Performance ------------- Evolutions (0) 0 Regions Visited (2) 400 Robots Destroyed (30) 150 Value Destroyed (436) 436 Prototype IDs (0) 0 Alien Tech Used (0) 0 Bonus (0) 0 TOTAL SCORE: 986 Bonus ------- None Cogmind --------- Core Integrity 0/250 Matter 289/300 Energy 100/100 System Corruption 3% Temperature Cool (0) Movement Treading (160) Location -10/Subcaves Parts ------- > --- POWER (1) -------- (None) > --- PROPULSION (2) --- Light Treads Light Treads > --- UTILITY (2) ------ Large Storage Unit Subdweller Optics > --- WEAPON (2) ------- Assault Rifle Light Assault Rifle > --- INVENTORY (15) --- Light Ion Engine Light Treads Light Treads Large Storage Unit Medium Matter Pod (100) Medium Matter Pod (100) Light Assault Rifle Subdweller Machine Gun Peak State ------------ > --- POWER ------------ Light Ion Engine > --- PROPULSION ------- Light Treads Light Treads > --- UTILITY ---------- Large Storage Unit Subdweller Optics > --- WEAPON ----------- Assault Rifle Light Assault Rifle > --- INVENTORY -------- Light Ion Engine Light Treads Light Treads Large Storage Unit Medium Matter Pod Medium Matter Pod Light Assault Rifle Subdweller Machine Gun [Rating: 8] Favorites ----------- Power Light Ion Engine Engine Light Ion Engine Propulsion Light Treads Treads Light Treads Utility Small Storage Unit Device Structural Scanner Storage Small Storage Unit Protection Light Armor Plating Weapon Assault Rifle Energy Gun EM Pulse Gun Ballistic Gun Assault Rifle Build | -11 -10 -10 ------- Run | Yrd Mat Sub Slots Evolved . | . . . Power . | . . . Propulsion . | . . . Utility . | . . . Weapon . | . . . Parts Attached 12 | 8 3 1 Power 1 | 1 . . Engine 1 | 1 . . Core . | . . . Reactor . | . . . Propulsion 2 | 2 . . Treads 2 | 2 . . Leg . | . . . Wheel . | . . . Hover . | . . . Flight . | . . . Utility 6 | 2 3 1 Device 2 | . 1 1 Storage 3 | 2 1 . Processor . | . . . Hackware . | . . . Protection 1 | . 1 . Artifact . | . . . Weapon 3 | 3 . . Energy Gun 1 | 1 . . Energy Cannon . | . . . Ballistic Gun 2 | 2 . . Ballistic Cannon . | . . . Launcher . | . . . Special Weapon . | . . . Impact Weapon . | . . . Slashing Weapon . | . . . Piercing Weapon . | . . . Special Melee Weapon . | . . . Unidentified Prototypes . | . . . Parts Lost 4 | . 1 3 Power 1 | . . 1 Propulsion . | . . . Utility 2 | . . 2 Weapon 1 | . 1 . Highest Loss Streak 1 | . 1 1 To Critical Strikes . | . . . Average Backups 6 | 5 6 7 Power . | . 1 1 Propulsion 1 | 1 1 2 Utility 2 | 1 3 3 Weapon 1 | . . 1 Tool/Special . | . . . Unused Backups 10 | . 3 7 Power 1 | . . 1 Propulsion 4 | . 2 2 Utility 3 | . 1 2 Weapon 2 | . . 2 Tool/Special . | . . . Average Slot Usage (%) 99 | . 100 98 Engine 13 | . 14 13 Treads 28 | . 28 28 Device 5 | . 3 8 Storage 16 | . 17 14 Protection 5 | . 6 4 Energy Gun 6 | . 9 . Ballistic Gun 21 | . 18 28 Peak Build Rating 8 | 7 7 8 Average Rating 6 | 6 6 7 On Entrance 4 | . 7 7 Naked Turns . | . . . Heaviest Build 30 | 14 30 29 Greatest Support 40 | 40 40 40 Greatest Overweight (x) . | . . . Average Overweight (x) . | . . . Largest Inventory Capacity 15 | 8 15 15 Average Capacity 8 | 7 13 15 Most Carried 8 | 6 8 8 Average Carried 6 | 5 6 7 Final Capacity 15 | 8 15 15 Final Carried 8 | 6 8 8 Class Distribution -------------------- 100% | Mutant Dominant Class ---------------- Mutant | -10/Materials Mutant | -10/Subcaves Resources | -11 -10 -10 ----------- Run | Yrd Mat Sub Matter Collected 830 | 544 178 108 Remotely . | . . . Salvage Created 905 | 337 322 246 Parts 75 | 35 26 14 Haulers Intercepted 2 | . 2 . Recyclers Shooed . | . . . Parts Field Recycled . | . . . Retrieved Matter . | . . . Parts Self-Destructed 7 | . . 7 Prevented . | . . . Kills | -11 -10 -10 ------- Run | Yrd Mat Sub Combat Hostiles Destroyed 11 | . 6 5 Guns 11 | . 6 5 Classes Destroyed 9 | 3 5 1 Worker 4 | 4 . . Builder 2 | . 2 . Tunneler 9 | 9 . . Hauler 2 | . 2 . Recycler 1 | 1 . . Watcher 1 | . 1 . Swarmer 3 | . 3 . Grunt 5 | . 3 2 Subdweller 3 | . . 3 Best Kill Streak 3 | 3 3 3 Combat Bots Only 3 | . 3 3 Max Kills in Single Turn 1 | 1 1 1 Gunslinging . | . . . Exploded . | . . . Melee . | . . . Uniques/NPCs Destroyed . | . . . Combat | -11 -10 -10 -------- Run | Yrd Mat Sub Hostile Shots Fired 63 | . 31 32 Missed 17 | . 6 11 Hits 46 | . 25 21 Projectile 46 | . 25 21 AOE 2 | . . 2 Damage Taken 810 | . 313 497 Core 260 | . 80 180 Absorbed by Shields . | . . . Core Remaining (%) 100 | 100 . . Volleys Fired 88 | 30 32 26 Largest 2 | 2 2 2 Hottest 60 | 60 60 40 Shots Fired 176 | 60 64 52 Gun 176 | 60 64 52 Cannon . | . . . Launcher . | . . . Special . | . . . Kinetic 130 | 41 37 52 Thermal . | . . . Explosive . | . . . Electromagnetic 46 | 19 27 . Robot Hit Streak 9 | 5 9 8 Robot Miss Streak 4 | 3 4 2 Penetration Max . | . . . Secondary Targets 1 | . . 1 Max Gunslinging Chain 1 | . . 1 Shots Hit Robots 113 | 27 43 43 Core Hits 46 | 16 16 14 Critical Kills . | . . . Critical Parts Destroyed . | . . . Critical Strikes 1 | . 1 . Corrupt 1 | . 1 . Melee Attacks . | . . . Impact . | . . . Slashing . | . . . Piercing . | . . . Sneak Attacks . | . . . Combat Hostiles . | . . . Follow-up Attacks . | . . . Damage Inflicted 1509 | 388 678 443 Guns 1298 | 326 529 443 Cannons . | . . . Explosions 211 | 62 149 . Melee . | . . . Ramming . | . . . Kinetic 884 | 173 268 443 Thermal 211 | 62 149 . Explosive . | . . . Electromagnetic 414 | 153 261 . Impact . | . . . Slashing . | . . . Piercing . | . . . Highest Corruption 3 | . 3 3 Average Corruption 2 | . 2 3 Corruption Purged . | . . . Corruption Blocked . | . . . Effects 13 | . 9 4 Message Errors 6 | . 3 3 Energy Discharges 1 | . 1 . Data Loss (minor) 3 | . 3 . Data Loss (major) 3 | . 2 1 Overload Shots . | . . . Overflow Damage 3 | . 3 . Projectiles . | . . . Explosions 3 | . 3 . Melee . | . . . Knockbacks . | . . . Impact . | . . . Kinetic . | . . . Secondary . | . . . Self-Inflicted Damage 74 | . 74 . Shots 2 | . 2 . Rammed . | . . . Targets Rammed . | . . . Kicked . | . . . Crushed . | . . . Highest Temperature 60 | . 60 . Average Temperature 20 | . 20 . Received Heat Transfer 114 | . 78 36 Siege Activations . | . . . Martial Activations . | . . . Shielding Activations . | . . . Robots Disrupted . | . . . Combat Hostiles . | . . . Robots Corrupted 1 | . 1 . Combat Hostiles . | . . . Parts Fried 1 | . 1 . Impact Corruptions . | . . . Robots Melted . | . . . Combat Hostiles . | . . . Parts Melted . | . . . Heat Transferred 300 | 50 250 . Parts Sabotaged . | . . . Parts Stolen . | . . . Parts Stripped . | . . . Power Chain Reactions 5 | 2 3 . Alert | -11 -10 -10 ------- Run | Yrd Mat Sub Maximum Alert Level . | . . . Low Security (%) 100 | 100 100 . Level 1 . | . . . Level 2 . | . . . Level 3 . | . . . Level 4 . | . . . Level 5 . | . . . High Security . | . . . Max Security . | . . . Peak Influence 77 | 40 77 . Initial 26 | . 26 . Average 5 | 4 23 . Influence Increases 347 | 70 227 50 Destroy 0b10 Robot/C 160 | . 120 40 Destroy 0b10 Robot/NC 95 | 70 25 . Destroy Leader 46 | . 36 10 Successful Hack 4 | . 4 . Select Force Hacks 30 | . 30 . Destroy Structure 12 | . 12 . Influence Decreases 347 | 30 256 61 Entered New Map 20 | . 14 6 Time Decay 307 | 30 232 45 Lost Part 20 | . 10 10 Squads Dispatched 2 | . 2 . Investigation 1 | . 1 . Extermination . | . . . Reinforcement 1 | . 1 . Assault . | . . . Garrison . | . . . Intercept . | . . . Searches Triggered . | . . . Construction Impeded . | . . . Haulers Reinforced . | . . . Active Scanning Responses . | . . . Cargo Convoy Interrupts . | . . . Stealth | -11 -10 -10 --------- Run | Yrd Mat Sub Distress Signals 1 | . 1 . Communications Jammed . | . . . Distress Signals . | . . . Times Spotted 18 | . 11 7 Peak Tracking Total 3 | . 3 2 Tactical Retreats . | . . . Traps | -11 -10 -10 ------- Run | Yrd Mat Sub Traps Triggered 2 | . 2 . Indirectly . | . . . Trap Hack Attempts . | . . . Triggered . | . . . Disarmed . | . . . Reprogrammed . | . . . Reused . | . . . Traps Extracted . | . . . Installed . | . . . Triggered . | . . . Machines | -11 -10 -10 ---------- Run | Yrd Mat Sub Machines Disabled . | . . . Max in Single Turn . | . . . Machines Repaired . | . . . Machines Dismantled . | . . . Machines Sabotaged . | . . . Overloaded Fab Kills . | . . . Hacking | -11 -10 -10 --------- Run | Yrd Mat Sub Machines Accessed 3 | . 3 . Terminals 2 | . 2 . Fabricators . | . . . Repair Stations . | . . . Recycling Units 1 | . 1 . Scanalyzers . | . . . Garrison Access . | . . . Total Hacks 8 | . 8 . Successful 3 | . 3 . Failed 5 | . 5 . Catastrophic . | . . . Database Lockouts . | . . . Manual 8 | . 8 . Terminals 7 | . 7 . Fabricators . | . . . Repair Stations . | . . . Recycling Units 1 | . 1 . Scanalyzers . | . . . Garrison Access . | . . . Terminal Hacks . | . . . Fabricator Hacks . | . . . Repair Station Hacks . | . . . Recycling Unit Hacks . | . . . Scanalyzer . | . . . Garrison Access Hacks . | . . . Unauthorized Hacks 3 | . 3 . Terminals 2 | . 2 . Botnet 2 | . 2 . Fabricators . | . . . Repair Stations . | . . . Recycling Units 1 | . 1 . Tunnel 1 | . 1 . Scanalyzers . | . . . Garrison Access . | . . . Data Cores Recovered . | . . . Used . | . . . Hacking Detections 2 | . 2 . Full Trace Events . | . . . Feedback Events . | . . . Feedback Blocked . | . . . Robot Schematics Acquired . | . . . Robots Built . | . . . Authchips . | . . . Time . | . . . Total Robot Build Rating . | . . . Part Schematics Acquired . | . . . Parts Built . | . . . Authchips . | . . . Time . | . . . Total Part Build Rating . | . . . Parts Repaired . | . . . Time . | . . . Parts Recycled . | . . . Recycled Matter . | . . . Retrieved Matter . | . . . Retrieved Components . | . . . Parts Scanalyzed . | . . . Part Schematics Acquired . | . . . Parts Damaged . | . . . Bothacking | -11 -10 -10 ------------ Run | Yrd Mat Sub Used RIF Installer . | . . . Robots Hacked . | . . . Non-combat . | . . . Combat . | . . . Robot Hacks Applied . | . . . Relay Couplers Released . | . . . Fabnet Peak Effective % . | . . . Robots Rewired . | . . . Allies Hacked . | . . . Hacks Repelled . | . . . Allies | -11 -10 -10 -------- Run | Yrd Mat Sub Total Allies . | . . . Largest Group . | . . . Highest-Rated Group . | . . . Highest-Rated Ally . | . . . Total Orders . | . . . Ally Attacks . | . . . Total Damage . | . . . Kills . | . . . Allies Corrupted . | . . . Allies Melted . | . . . Intel | -11 -10 -10 ------- Run | Yrd Mat Sub Active Infowar (turns) 417 | . 186 231 Optics 106 | . . 106 Structural 311 | . 186 125 Robot Analysis Total . | . . . Derelict Logs Recovered . | . . . Drone Launches . | . . . Drone Recoveries . | . . . Exploration | -11 -10 -10 ------------- Run | Yrd Mat Sub Turns Passed 12331 | 11337 630 364 Spaces Moved 1348 | 949 258 141 Core 2 | 2 . . Treads 1346 | 947 258 141 Legs . | . . . Wheels . | . . . Hover . | . . . Flight . | . . . Fastest Speed 50 | 50 160 160 Average Speed 159 | 159 160 160 Slowest Speed 160 | 160 160 160 Overloaded Moves . | . . . Propulsion Burnouts . | . . . Robots Hopped . | . . . Potential Cave-ins . | . . . Cave-ins Triggered . | . . . Exploration Rate (%) 55 | 107 45 14 Regions Visited 2 Branch Regions 1 Pre-discovered Areas 1 | . 1 . Known Exits Taken . | . . . Unknown Exits Taken 2 | 1 1 . Scrap Searched . | . . . Spaces Dug . | . . . Terrain Destroyed 20 | 6 14 . Melee . | . . . Projectile . | . . . AOE 20 | 6 14 . Terrain Rammed . | . . . Walls Destroyed . | . . . Machines Disabled . | . . . Actions | -11 -10 -10 --------- Run | Yrd Mat Sub Total 11352 | 10708 412 232 Wait 9886 | 9716 108 62 Move 1346 | 948 257 141 Hop . | . . . Pick Up 13 | 6 6 1 Fast Attach 8 | 7 . 1 Attach 2 | . 1 1 Detach . | . . . Swap 5 | 1 4 . Drop 4 | . 4 . Fire 88 | 30 32 26 Melee . | . . . Ram . | . . . Kick . | . . . Crush . | . . . Escape Stasis . | . . . Rewire . | . . . Trap . | . . . Miscellaneous . | . . . Route ------- -11/Scrapyard -10/Materials (discovered 3 exits: [*Mat] / [*Min] / [*Sub]) -10/Subcaves History --------- Turn | Location | Event 21 | -11/Scrapyard | Discovered new exit (range 15) 11338 | -11/Scrapyard | Entered Materials 11339 | -10/Materials | Build established: Mutant 11403 | -10/Materials | Discovered new exit (range 8) 11730 | -10/Materials | Discovered new exit (range 7) 11958 | -10/Materials | Discovered new exit (range 7) 11968 | -10/Materials | Entered Subcaves 11969 | -10/Subcaves | Approached by a straggling Scientist 12108 | -10/Subcaves | Shifting Twisted Machinery released Sub. Optics 12110 | -10/Subcaves | Shifting Twisted Machinery released Sub. Power Source 12193 | -10/Subcaves | Core integrity fell below 50% 12326 | -10/Subcaves | Core integrity fell below 20% 12332 | -10/Subcaves | Destroyed by IH-5TT(R) with Subdweller Machine Gun Last Messages --------------- 12201_ G-47 Trooper destroyed. 12208_ Lgt. Nuclear Core fries itself beyond repair. 12208_ Acquired 32 matter. 12211_ 56-1AA(R): "SUBHATE!" 12216_ Acquired 4 matter. 12216_ Structural Scanner destroyed. 12218_ Y%GA1C#YFLUQ17SDQMGSY 12308_ S F3MGP #DY/ET #D0H12/M7 12321_ MV-I1W(c) destroyed. 12325_ Lgt. Ion Engine destroyed. 12325_ CE-O3C(R) destroyed. Map ----- +----------------------------------------------------+ | ????????????????????????????????????????????## | | ????????????????????????????????????????????## | | ????????????????????????????????????????????### | | ????????????????????????????????????????????## | | ????????????????????????????##??????????????## | | ??????????????????????????## #??????????????## | | ?????????????????????????## #??????????????## | | ???????????????????????### #??????????????#### | | ???????????????????????# ##?????????????#### | | ????????????????????#### #??????????????### | | ???????????????????## #####??????????####### | | ???????????????????# ##???########??####### | | ???????????????????## ##???# ########## | | ????????????????????## ##### ### #### | | ?????????????????????### ;;;; #?## ### #### | | ???????????????????????#; #### ####### | | ???????????????????????#; ### ######?? | | ???????????????????????#; %%####????? | | ???????????????????????#;; ###?????? | | ????????????????????????#; #### | | ??????????????????#?????#; #### %! | | ?????######## ???# ##### ##### = # | | ?????# ? ; ;; ### ## | | ????# # ;;;# | | ????# ; ;# | | ?????# @ = ## | | ???????# ### | | ???????# R ;; ## ###? | | ????? ### ; ####### ####? | | ????? ??????## #; ######## ###?? | | ????????????????# ##%& #?????## ###??? | | ????????????????## ?# ##?????# #######??? | | ????????????????? ?? #?????? ######???? | | ???????????????? ??? ????? #????????? | | ??????????????? ???## ???? #### #???????? | | ?????????????? ?????# ???# #???#####???????? | | ?????????????# ?????? ???# ##????????????????? | | ?????????????##???????# ???????????????????????? | | ??????????????????????####???????????????????????? | | ?????????????????????????????????????????????????? | | ?????????????????????????????????????????????????? | | ?????????????????????????????????????????????????? | | ?????????????????????????????????????????????????? | | ?????????????????????????????????????????????????? | | ?????????????????????????????????????????????????? | | ?????????????????????????????????????????????????? | | ?????????????????????????????????????????????????? | | ?????????????????????????????????????????????????? | | ?????????????????????????????????????????????????? | | ?????????????????????????????????????????????????? | +----------------------------------------------------+ Best States ------------- Heat Dissipation 25 Energy Generation 10 Energy Capacity 125 Matter Stores 400 Matter Capacity 400 Sight Range 21 Terrain Scan Density 10 Armor Coverage 150 Evasion (%) 40 Recoil Reduction 2 Item Schematics ----------------- None Robot Schematics ------------------ None Fabricated ------------ Nothing Repaired ---------- Nothing Alien Tech Used ----------------- None Achievements -------------- None Challenges ------------ None Game ------ Seed SmartbombRapidStatue Manual? 0 Play Time 00:21:03 Cumulative 103.0 hours Start 2025.05.31 @ 18:44:36 End 2025.05.31 @ 19:03:14 Sessions 1 Manual Loads 0 Difficulty Rogue Special Mode None Game No. 100 Rogue 100 Adventurer 0 Explorer 0 Win Type - Total 1 Types 1/0/0/0/0/0/0/0/0/0 Lore% 55 Gallery% 45 Achievement% 46 Wizard Run 0 Options --------- Layout 0 ASCII 0 Keyboard 0 Movement Mouse Keybinds 0 Fullscreen 2 Font 18/X11 Map View 76x50 Zoom Use 0% Tactical HUD 1 Map Filters NONE Filters NONE Steam 1 RUN: 86d70fa1-4d63-40b0-93e3-acb11412d904